fUSD/lending_fUSD_20250804
["ID","MTS","AMOUNT","RATE_DAILY","PERIOD"]
[377194239,1754283040760,-200.0,0.0004482,7]
[377194240,1754283040770,-346.34,0.00044859,2]
[377194241,1754283040780,-500.0,0.00044873,10]
[377194242,1754283040790,-500.0,0.00044873,10]
[377194243,1754283040799,-162.93569328,0.00044873,10]
[377194244,1754283040809,-500.27256849,0.00044873,10]
[377194245,1754283040818,-502.79239309,0.00044873,10]
[377194246,1754283040828,-500.0,0.00044873,10]
[377194247,1754283040837,-500.0,0.00044873,5]
[377194248,1754283040846,-647.83634953,0.00044873,10]
[377194250,1754283040856,-505.71053135,0.00044873,10]
[377194251,1754283040866,-523.77296831,0.00044873,10]
[377194252,1754283040875,-500.0,0.00044873,10]
[377194253,1754283040885,-500.0,0.00044873,10]
[377194254,1754283040894,-500.0,0.00044873,10]
[377194255,1754283040903,-500.0,0.00044873,2]
[377194256,1754283040913,-509.68044894,0.00044873,10]
[377194257,1754283040922,-243.85767621,0.00044873,10]
[377194258,1754283040931,-230.19364531,0.00044873,10]
[377194259,1754283040941,-500.60126646,0.000449,10]
[377194260,1754283040950,-151.0,0.00044941,120]
[377194261,1754283040960,-839.47562904,0.00044965,2]
[377194262,1754283040969,-209.95833796,0.00045,120]
[377194263,1754283040978,-516.7055503,0.00045,120]
[377194264,1754283040987,-651.0,0.00045,120]
[377194265,1754283040997,-1012.944029,0.00045,120]
[377194266,1754283041008,-224.0,0.00045,90]
[377194267,1754283041018,-160.0,0.00045,90]
[377194268,1754283041027,-150.0,0.00045075,2]
[377194269,1754283041036,-910.70386423,0.00045217,2]
[377194270,1754283041046,-1007.0,0.000453,7]
[377194271,1754283041055,-1447.15427,0.0004537,27]
[377194272,1754283041064,-503.22884168,0.00045421,10]
[377194273,1754283041073,-1000.0,0.00045421,5]
[377194274,1754283041083,-502.06363108,0.00045421,10]
[377194275,1754283041092,-1000.0,0.00045421,10]
[377194276,1754283041103,-1000.0,0.00045421,2]
[377194277,1754283041114,-151.0,0.00045421,14]
[377194278,1754283041123,-151.0,0.00045421,14]
[377194279,1754283041132,-257.618581,0.00045421,14]
[377194280,1754283041142,-151.0,0.00045448,14]
[377194281,1754283041153,-981.93209942,0.00045469,2]
[377194282,1754283041162,-218.93,0.00045516,120]
[377194283,1754283041171,-1000.0,0.00045516,2]
[377194284,1754283041183,-151.0,0.00045516,14]
[377194285,1754283041192,-151.0,0.00045516,14]
[377194286,1754283041201,-150.0,0.00045534,2]
[377194287,1754283041211,-13536.455736,0.00045675,3]
[377194288,1754283041221,-360885.6700676,0.00045685,31]
[377194289,1754283041230,-224.0,0.00045685,90]
[377194290,1754283041239,-156.513014,0.00045685,14]
[377194291,1754283041249,-151.0,0.00045685,14]
[377194292,1754283041258,-154.3503,0.00045685,14]
[377194293,1754283041268,-162.849685,0.00045685,14]
[377194294,1754283041277,-418.26816,0.00045685,14]
[377194295,1754283041286,-418.26816,0.00045685,14]
[377194296,1754283041295,-1553.465892,0.00045685,14]
[377194297,1754283041305,-1553.465892,0.00045685,14]
[377194298,1754283041314,-152.513532,0.00045685,14]
[377194299,1754283041324,-151.0,0.00045685,14]
[377194300,1754283041334,-151.0,0.00045685,14]
[377194301,1754283041343,-151.0,0.00045685,14]
[377194302,1754283041353,-300.970445,0.00045685,14]
[377194303,1754283041363,-300.970445,0.00045685,14]
[377194304,1754283041372,-600.0,0.00045705,14]
[377194305,1754283041381,-436.14,0.00045705,14]
[377194306,1754283041391,-1053.16033461,0.00045721,2]
[377194307,1754283041400,-469.81,0.00045741,120]
[377194308,1754283041410,-150.0,0.00045761,2]
[377194309,1754283041419,-153.29,0.00045776,14]
[377194310,1754283041429,-167.471548,0.000458,15]
[377194311,1754283041438,-500.0,0.00045835,30]
[377194312,1754283041448,-500.0,0.00045873,10]
[377194313,1754283041459,-500.0,0.00045873,10]
[377194314,1754283041469,-500.0,0.00045873,10]
[377194315,1754283041479,-502.3533705,0.00045873,10]
[377194316,1754283041488,-427.36103189,0.00045873,10]
[377194317,1754283041498,-153.71,0.00045874,120]
[377194318,1754283041508,-817.87,0.00045882,30]
[377194319,1754283041517,-10031.29768006,0.000459,30]
[377194320,1754283041527,-295.672472,0.000459,14]
[377194321,1754283041537,-295.672472,0.000459,14]
[377194322,1754283041546,-151.0,0.000459,14]
[377194323,1754283041556,-151.0,0.000459,14]
[377194324,1754283041566,-879.395519,0.000459,14]
[377194325,1754283041576,-879.395519,0.000459,14]
[377194326,1754283041585,-151.0,0.000459,14]
[377194327,1754283041595,-151.0,0.000459,14]
[377194328,1754283041604,-152.10665,0.000459,14]
[377194329,1754283041614,-500.0,0.000459,16]
[377194330,1754283041624,-271.980692,0.000459,14]
[377194331,1754283041634,-271.980692,0.000459,14]
[377194332,1754283041643,-151.0,0.000459,14]
[377194333,1754283041652,-2986.12618346,0.000459,18]
[377194334,1754283041662,-151.0,0.000459,14]
[377194335,1754283041671,-151.0,0.000459,14]
[377194336,1754283041681,-150.0,0.00045938,2]
[377194337,1754283041690,-456.86878018,0.00045968,5]
[377194338,1754283041700,-502.40440746,0.00045968,10]
[377194339,1754283041709,-504.6690318,0.00045968,2]
[377194340,1754283041718,-150.0,0.0004597,2]
[377194341,1754283041728,-500.0,0.00045973,10]
[377194342,1754283041737,-500.0,0.00045973,10]
[377194343,1754283041747,-500.0,0.00045973,10]
[377194344,1754283041756,-1124.3885698,0.00045973,2]
[377194345,1754283041766,-189510.380304,0.00045989,3]
[377194346,1754283041775,-53118.3745746,0.00045989,3]
[377194347,1754283041785,-9657.8862863,0.0004599,3]
[377194348,1754283041794,-13536.455736,0.0004599,3]
[377194349,1754283041803,-9657.8862863,0.0004599,3]
[377194350,1754283041813,-151.0,0.00045999,14]
[377194351,1754283041823,-151.0,0.00045999,14]
[377194352,1754283041832,-1929.21757971,0.00046,120]
[377194353,1754283041842,-11267.62097481,0.00046,10]
[377194354,1754283041852,-1212.0,0.00046,120]
[377194355,1754283041861,-152.457873,0.00046,14]
[377194356,1754283041870,-151.0,0.00046,14]
[377194357,1754283041879,-177.685595,0.00046,14]
[377194358,1754283041889,-177.685595,0.00046,14]
[377194359,1754283041901,-151.0,0.00046,14]
[377194360,1754283041910,-151.0,0.00046,14]
[377194361,1754283041921,-151.0,0.00046,14]
[377194362,1754283041931,-151.0,0.00046,14]
[377194363,1754283041942,-151.0,0.00046,14]
[377194364,1754283041953,-151.0,0.00046,14]
[377194365,1754283041962,-151.0,0.00046,14]
[377194366,1754283041971,-151.0,0.00046,14]
[377194367,1754283041984,-151.0,0.00046,14]
[377194368,1754283041995,-151.0,0.00046,14]
[377194369,1754283042004,-151.0,0.00046,14]
[377194370,1754283042014,-151.0,0.00046,14]
[377194371,1754283042024,-759.368077,0.00046,14]
[377194372,1754283042033,-759.368077,0.00046,14]
[377194373,1754283042042,-151.0,0.00046,14]
[377194374,1754283042051,-151.0,0.00046,14]
[377194375,1754283042060,-151.0,0.00046,14]
[377194376,1754283042071,-151.0,0.00046,14]
[377194377,1754283042080,-151.0,0.00046,14]
[377194378,1754283042089,-500.0,0.00046,120]
[377194379,1754283042099,-150.0,0.00046007,2]
[377194380,1754283042111,-150.0,0.00046032,2]
[377194381,1754283042121,-167.47154797,0.00046033,15]
[377194382,1754283042131,-246.95168532,0.0004604,2]
[377194383,1754283042140,-150.0,0.00046045,2]
[377194384,1754283042149,-359.08,0.00046082,30]
[377194385,1754283042159,-151.0,0.000461,14]
[377194386,1754283042168,-151.0,0.000461,14]
[377194387,1754283042177,-151.0,0.000461,14]
[377194388,1754283042187,-1156.0,0.000461,7]
[377194389,1754283042197,-4828.94314315,0.00046123,3]
[377194390,1754283042206,-151.0,0.00046133,14]
[377194391,1754283042215,-151.0,0.00046133,14]
[377194392,1754283042224,-151.0,0.00046133,14]
[377194393,1754283042234,-153.03176,0.00046133,14]
[377194394,1754283042243,-151.0,0.00046133,14]
[377194395,1754283042253,-151.0,0.00046133,14]
[377194396,1754283042263,-150.0,0.00046141,2]
[377194397,1754283042273,-690.4,0.00046156,30]
[377194398,1754283042282,-150.0,0.00046194,2]
[377194399,1754283042292,-150.0,0.00046203,2]
[377194400,1754283042301,-183.55,0.00046213,14]
[377194401,1754283042311,-818.21,0.00046219,30]
[377194402,1754283042320,-818.21,0.00046219,30]
[377194403,1754283042329,-1195.61680499,0.00046225,2]
[377194404,1754283042341,-300.0,0.00046235,2]
[377194405,1754283042352,-167.47154797,0.00046267,15]
[377194406,1754283042362,-150.0,0.00046312,2]
[377194407,1754283042371,-515.0,0.00046323,21]
[377194408,1754283042381,-500.0,0.0004633,30]
[377194409,1754283042390,-1447.15428,0.0004637,32]
[377194410,1754283042400,-500.0,0.00046373,30]
[377194411,1754283042409,-150.0,0.00046389,2]
[377194412,1754283042418,-151.0,0.0004639,14]
[377194413,1754283042427,-271.980692,0.0004639,14]
[377194414,1754283042437,-271.980692,0.0004639,14]
[377194415,1754283042447,-13536.455736,0.0004639,3]
[377194416,1754283042457,-151.0,0.0004639,14]
[377194417,1754283042467,-14486.8294294,0.0004639,3]
[377194418,1754283042476,-295.842369,0.0004639,14]
[377194419,1754283042486,-151.0,0.0004639,14]
[377194420,1754283042496,-151.0,0.0004639,14]
[377194421,1754283042505,-22422.04224559,0.000464,31]
[377194422,1754283042514,-151.0,0.000464,14]
[377194423,1754283042524,-151.0,0.000464,14]
[377194424,1754283042534,-151.0,0.000464,14]
[377194425,1754283042544,-151.0,0.000464,14]
[377194426,1754283042554,-168.358873,0.000464,14]
[377194427,1754283042564,-168.358873,0.000464,14]
[377194429,1754283042573,-151.0,0.000464,14]
[377194430,1754283042583,-235.489405,0.000464,14]
[377194431,1754283042593,-151.0,0.000464,14]
[377194432,1754283042603,-151.0,0.000464,14]
[377194434,1754283042612,-300.970445,0.000464,14]
[377194436,1754283042621,-300.970445,0.000464,14]
[377194438,1754283042631,-150.0,0.00046414,2]
[377194440,1754283042641,-502.86458747,0.00046421,10]
[377194442,1754283042651,-1086.24504376,0.00046421,10]
[377194444,1754283042660,-150.0,0.00046426,2]
[377194446,1754283042670,-150.0,0.00046429,2]
[377194448,1754283042679,-150.0,0.00046442,2]
[377194451,1754283042689,-150.0,0.00046457,2]
[377194452,1754283042698,-1266.84504018,0.00046477,2]
[377194453,1754283042708,-13536.455736,0.00046477,3]
[377194454,1754283042717,-4828.94314315,0.00046477,3]
[377194455,1754283042727,-151.0,0.00046487,14]
[377194456,1754283042736,-418.26816,0.00046487,14]
[377194457,1754283042745,-418.26816,0.00046487,14]
[377194458,1754283042755,-1553.465892,0.00046487,14]
[377194459,1754283042764,-1553.465892,0.00046487,14]
[377194460,1754283042774,-150.0,0.00046487,2]
[377194461,1754283042783,-151.0,0.00046487,14]
[377194462,1754283042793,-151.0,0.00046487,14]
[377194463,1754283042803,-150.0,0.00046492,2]
[377194464,1754283042814,-167.47154797,0.000465,15]
[377194465,1754283042825,-1001.2743672,0.00046521,10]
[377194466,1754283042835,-1067.75311442,0.00046521,10]
[377194467,1754283042845,-503.93393116,0.00046521,10]
[377194468,1754283042855,-300.0,0.00046533,2]
[377194469,1754283042866,-600.0,0.00046538,14]
[377194470,1754283042878,-436.14,0.00046538,14]
[377194471,1754283042887,-150.0,0.0004656,2]
[377194472,1754283042898,-150.0,0.00046575,2]
[377194473,1754283042909,-150.0,0.00046576,7]
[377194474,1754283042919,-150.0,0.00046594,7]
[377194475,1754283042930,-150.0,0.00046604,7]
[377194476,1754283042940,-150.0,0.00046705,7]
[377194477,1754283042950,-1338.07327537,0.00046729,2]
[377194478,1754283042960,-153.29,0.00046731,14]
[377194479,1754283042970,-167.47154797,0.00046733,15]
[377194480,1754283042981,-300.0,0.00046756,7]
[377194481,1754283042990,-150.0,0.00046762,7]
[377194482,1754283042999,-151.0,0.0004679,14]
[377194483,1754283043008,-151.0,0.0004679,14]
[377194484,1754283043018,-151.0,0.0004679,14]
[377194485,1754283043029,-150.0,0.00046798,7]
[377194486,1754283043038,-1313.72112197,0.000468,120]
[377194487,1754283043047,-363.86271134,0.000468,120]
[377194488,1754283043057,-346.34,0.0004681,2]
[377194489,1754283043066,-500.0,0.00046815,30]
[377194490,1754283043076,-4828.94314315,0.00046823,3]
[377194491,1754283043087,-150.0,0.0004686,7]
[377194492,1754283043097,-749.68602,0.000469,20]
[377194493,1754283043112,-295.672472,0.000469,14]
[377194494,1754283043122,-295.672472,0.000469,14]
[377194495,1754283043131,-151.0,0.000469,14]
[377194496,1754283043144,-151.0,0.000469,14]
[377194497,1754283043155,-879.395519,0.000469,14]
[377194499,1754283043164,-879.395519,0.000469,14]
[377194501,1754283043174,-151.0,0.000469,14]
[377194502,1754283043185,-1100.0,0.000469,17]
[377194504,1754283043194,-151.0,0.000469,14]
[377194505,1754283043203,-151.0,0.000469,14]
[377194506,1754283043212,-151.0,0.000469,14]
[377194507,1754283043222,-175.58,0.00046904,30]
[377194509,1754283043232,-165.01,0.00046904,30]
[377194511,1754283043242,-247.32,0.00046904,30]
[377194513,1754283043251,-330.7,0.00046904,30]
[377194514,1754283043261,-172.88,0.00046904,30]
[377194515,1754283043272,-165.35,0.00046904,30]
[377194516,1754283043282,-172.88,0.00046904,30]
[377194517,1754283043292,-358.84,0.00046904,30]
[377194518,1754283043302,-177.51,0.00046904,30]
[377194519,1754283043313,-150.0,0.00046906,7]
[377194520,1754283043322,-177.8,0.00046939,2]
[377194521,1754283043332,-167.47154797,0.00046967,15]
[377194523,1754283043342,-4828.94314315,0.00046972,3]
[377194524,1754283043352,-152.614647,0.00046982,14]
[377194525,1754283043362,-271.980692,0.00046982,14]
[377194526,1754283043372,-271.980692,0.00046982,14]
[377194527,1754283043382,-1409.30151057,0.00046982,2]
[377194528,1754283043392,-151.0,0.00046992,14]
[377194529,1754283043401,-151.0,0.00046992,14]
[377194530,1754283043550,-151.0,0.00046992,14]
[377194531,1754283043560,-151.0,0.00046993,14]
[377194532,1754283043570,-151.0,0.00046993,14]
[377194533,1754283043581,-150.0,0.00046995,7]
[377194534,1754283043590,-841.59890878,0.00047,3]
[377194535,1754283043600,-150.0,0.0004701,7]
[377194536,1754283043610,-500.0,0.00047072,120]
[377194537,1754283043620,-500.0,0.00047073,10]
[377194538,1754283043630,-501.91916091,0.00047073,10]
[377194539,1754283043640,-247631.45464305,0.00047073,120]
[377194540,1754283043650,-282.554752,0.00047082,14]
[377194541,1754283043659,-271.980692,0.00047082,14]
[377194542,1754283043669,-271.980692,0.00047082,14]
[377194543,1754283043679,-271.980692,0.00047082,14]
[377194544,1754283043688,-271.980692,0.00047082,14]
[377194545,1754283043697,-151.0,0.00047082,14]
[377194546,1754283043707,-151.0,0.00047082,14]
[377194547,1754283043717,-151.0,0.00047082,14]
[377194548,1754283043727,-151.0,0.00047082,14]
[377194549,1754283043736,-151.0,0.00047082,14]
[377194550,1754283043746,-13536.455736,0.00047083,3]
[377194551,1754283043755,-4828.94314315,0.00047083,3]
[377194552,1754283043765,-271.980692,0.00047083,14]
[377194553,1754283043775,-151.0,0.00047083,14]
[377194554,1754283043785,-271.980692,0.00047083,14]
[377194555,1754283043794,-151.0,0.00047083,14]
[377194556,1754283043803,-151.0,0.00047083,14]
[377194557,1754283043813,-151.0,0.00047083,14]
[377194558,1754283043823,-151.0,0.00047083,14]
[377194559,1754283043833,-67682.27868,0.00047083,3]
[377194560,1754283043842,-96578.862863,0.00047083,3]
[377194561,1754283043852,-151.0,0.00047092,14]
[377194562,1754283043861,-300.970445,0.00047092,14]
[377194563,1754283043871,-300.970445,0.00047092,14]
[377194564,1754283043881,-151.0,0.00047092,14]
[377194565,1754283043891,-151.0,0.00047092,14]
[377194566,1754283043900,-151.0,0.00047093,14]
[377194567,1754283043910,-151.0,0.00047093,14]
[377194568,1754283043922,-151.0,0.00047093,14]
[377194569,1754283043933,-151.0,0.00047093,14]
[377194570,1754283043942,-151.0,0.00047093,14]
[377194571,1754283043952,-247.744462,0.00047093,14]
[377194572,1754283043962,-151.0,0.00047093,14]
[377194573,1754283043972,-151.0,0.00047093,14]
[377194574,1754283043982,-151.0,0.00047093,14]
[377194575,1754283043993,-154.971489,0.00047093,14]
[377194576,1754283044003,-151.0,0.00047093,14]
[377194577,1754283044014,-193.0,0.00047093,14]
[377194578,1754283044025,-295.672472,0.00047093,14]
[377194579,1754283044035,-295.672472,0.00047093,14]
[377194580,1754283044044,-295.672472,0.00047093,14]
[377194581,1754283044055,-295.672472,0.00047093,14]
[377194582,1754283044066,-151.0,0.00047093,14]
[377194583,1754283044076,-151.0,0.00047093,14]
[377194584,1754283044088,-151.0,0.00047093,14]
[377194585,1754283044100,-151.0,0.00047093,14]
[377194586,1754283044115,-152.659674,0.00047093,14]
[377194587,1754283044126,-151.0,0.00047093,14]
[377194588,1754283044136,-160.220119,0.00047093,14]
[377194589,1754283044147,-151.0,0.00047093,14]
[377194590,1754283044157,-151.0,0.00047093,14]
[377194591,1754283044167,-879.395519,0.00047093,14]
[377194592,1754283044177,-879.395519,0.00047093,14]
[377194593,1754283044188,-879.395519,0.00047093,14]
[377194594,1754283044199,-879.395519,0.00047093,14]
[377194595,1754283044208,-151.0,0.00047093,14]
[377194596,1754283044218,-151.0,0.00047093,14]
[377194597,1754283044228,-151.0,0.00047093,14]
[377194598,1754283044238,-759.368077,0.00047093,14]
[377194599,1754283044249,-759.368077,0.00047093,14]
[377194600,1754283044258,-759.368077,0.00047093,14]
[377194601,1754283044269,-759.368077,0.00047093,14]
[377194602,1754283044279,-151.0,0.00047093,14]
[377194603,1754283044289,-151.0,0.00047093,14]
[377194604,1754283044298,-151.0,0.00047093,14]
[377194605,1754283044307,-271.191673,0.00047093,14]
[377194606,1754283044317,-271.980692,0.00047093,14]
[377194607,1754283044326,-151.0,0.00047093,14]
[377194608,1754283044336,-271.980692,0.00047093,14]
[377194609,1754283044346,-151.0,0.00047093,14]
[377194610,1754283044356,-177.848423,0.00047093,14]
[377194611,1754283044366,-151.0,0.00047093,14]
[377194612,1754283044376,-300.970445,0.00047093,14]
[377194613,1754283044385,-300.970445,0.00047093,14]
[377194614,1754283044395,-151.0,0.00047093,14]
[377194615,1754283044405,-151.0,0.00047093,14]
[377194616,1754283044414,-151.0,0.00047093,14]
[377194617,1754283044424,-189842.5105,0.00047093,2]
[377194618,1754283044433,-169.24963092,0.00047095,15]
[377194619,1754283044444,-158.25371841,0.00047096,26]
[377194620,1754283044453,-150.0,0.00047158,7]
[377194621,1754283044467,-150.0,0.00047173,3]
[377194622,1754283044476,-500.0,0.00047173,10]
[377194623,1754283044486,-4828.94314315,0.00047183,3]
[377194624,1754283044495,-9657.8862863,0.00047183,3]
[377194625,1754283044505,-151.0,0.00047193,14]
[377194626,1754283044514,-151.0,0.00047193,14]
[377194627,1754283044524,-151.0,0.00047193,14]
[377194628,1754283044534,-151.0,0.00047193,14]
[377194629,1754283044543,-151.0,0.00047193,14]
[377194630,1754283044552,-151.0,0.00047193,14]
[377194631,1754283044562,-151.0,0.00047193,14]
[377194632,1754283044571,-151.0,0.00047193,14]
[377194633,1754283044581,-151.0,0.00047193,14]
[377194634,1754283044590,-151.0,0.00047193,14]
[377194635,1754283044600,-155.684209,0.00047193,14]
[377194636,1754283044609,-151.0,0.00047193,14]
[377194637,1754283044619,-151.0,0.00047193,14]
[377194638,1754283044628,-184.107189,0.00047193,14]
[377194639,1754283044638,-159.022194,0.00047193,14]
[377194640,1754283044648,-158.350387,0.00047193,14]
[377194641,1754283044657,-177.685595,0.00047193,14]
[377194642,1754283044668,-177.685595,0.00047193,14]
[377194643,1754283044678,-243.156381,0.00047193,14]
[377194644,1754283044687,-151.0,0.00047193,14]
[377194645,1754283044697,-418.26816,0.00047193,14]
[377194646,1754283044706,-418.26816,0.00047193,14]
[377194647,1754283044715,-151.0,0.00047193,14]
[377194648,1754283044724,-151.0,0.00047193,14]
[377194649,1754283044733,-1553.465892,0.00047193,14]
[377194650,1754283044742,-1553.465892,0.00047193,14]
[377194651,1754283044751,-30000.0,0.00047193,30]
[377194652,1754283044760,-300.970445,0.00047196,14]
[377194653,1754283044769,-300.970445,0.00047196,14]
[377194654,1754283044780,-167.47154797,0.000472,15]
[377194655,1754283044789,-1480.52974576,0.00047234,2]
[377194656,1754283044798,-150.0,0.00047258,7]
[377194657,1754283044807,-150.0,0.0004727,7]
[377194658,1754283044817,-150.0,0.00047277,7]
[377194659,1754283044825,-150.0,0.00047295,7]
[377194660,1754283044835,-1700.0,0.000473,17]
[377194661,1754283044844,-500.0,0.00047346,120]
[377194662,1754283044853,-150.0,0.00047347,7]
[377194663,1754283044862,-1447.15427,0.0004737,37]
[377194664,1754283044871,-150.0,0.0004738,7]
[377194665,1754283044880,-295.672472,0.00047385,14]
[377194666,1754283044890,-295.672472,0.00047385,14]
[377194667,1754283044900,-151.0,0.00047385,14]
[377194668,1754283044909,-879.395519,0.00047385,14]
[377194669,1754283044919,-879.395519,0.00047385,14]
[377194670,1754283044929,-151.0,0.00047385,14]
[377194671,1754283044939,-151.0,0.00047385,14]
[377194672,1754283044949,-151.0,0.00047385,14]
[377194673,1754283044959,-2300.0,0.000474,17]
[377194674,1754283044969,-1000.0,0.00047401,14]
[377194675,1754283044978,-500.0,0.00047402,120]
[377194676,1754283044988,-151.0,0.00047402,14]
[377194677,1754283044997,-151.0,0.00047402,14]
[377194678,1754283045007,-151.0,0.00047402,14]
[377194679,1754283045016,-151.0,0.00047402,14]
[377194680,1754283045026,-168.358873,0.00047402,14]
[377194681,1754283045036,-168.358873,0.00047402,14]
[377194682,1754283045047,-151.0,0.00047402,14]
[377194683,1754283045057,-235.489405,0.00047402,14]
[377194684,1754283045067,-151.0,0.00047402,14]
[377194685,1754283045077,-151.0,0.00047402,14]
[377194686,1754283045086,-271.980692,0.00047402,14]
[377194687,1754283045096,-156.290156,0.00047402,14]
[377194688,1754283045111,-271.980692,0.00047402,14]
[377194689,1754283045120,-151.0,0.00047402,14]
[377194690,1754283045130,-151.0,0.00047402,14]
[377194691,1754283045139,-151.0,0.00047402,14]
[377194692,1754283045148,-1251.0,0.00047402,2]
[377194693,1754283045158,-809.0,0.00047402,2]
[377194694,1754283045168,-156.829,0.00047402,2]
[377194695,1754283045177,-3360.0,0.00047402,2]
[377194696,1754283045186,-955.0,0.00047402,2]
[377194697,1754283045197,-601.59,0.00047402,2]
[377194698,1754283045206,-2039.927,0.00047402,2]
[377194699,1754283045216,-568.64,0.00047402,2]
[377194700,1754283045225,-1305.688,0.00047402,2]
[377194701,1754283045234,-1169.0,0.00047402,2]
[377194702,1754283045243,-1708.224,0.00047402,2]
[377194703,1754283045253,-3800.239,0.00047402,2]
[377194704,1754283045262,-6070.0,0.00047402,2]
[377194705,1754283045272,-4137.0,0.00047402,2]
[377194706,1754283045281,-865.0,0.00047402,2]
[377194707,1754283045291,-150.0,0.00047416,7]
[377194708,1754283045300,-575.63,0.00047427,14]
[377194709,1754283045309,-150.0,0.0004743,7]
[377194710,1754283045319,-167.47154797,0.00047433,15]
[377194711,1754283045328,-150.0,0.00047438,7]
[377194712,1754283045337,-469.81,0.00047471,120]
[377194713,1754283045347,-575.63,0.00047485,14]
[377194714,1754283045356,-1551.75798095,0.00047486,2]
[377194715,1754283045366,-150.0,0.00047492,7]
[377194716,1754283045376,-3003.12413006,0.000475,120]
[377194717,1754283045385,-2900.0,0.000475,17]
[377194718,1754283045395,-150.0,0.00047507,7]
[377194719,1754283045404,-150.0,0.00047525,7]
[377194720,1754283045414,-150.0,0.00047538,7]
[377194721,1754283045423,-575.63,0.00047542,14]
[377194722,1754283045432,-150.0,0.00047551,120]
[377194723,1754283045441,-150.0,0.00047552,14]
[377194724,1754283045451,-150.0,0.00047555,7]
[377194725,1754283045461,-150.0,0.00047564,7]
[377194726,1754283045470,-150.0,0.00047566,7]
[377194727,1754283045480,-1000.0,0.00047571,14]
[377194728,1754283045489,-151.0,0.0004759,14]
[377194729,1754283045498,-162.358068,0.0004759,14]
[377194730,1754283045508,-151.0,0.0004759,14]
[377194732,1754283045518,-151.0,0.0004759,14]
[377194734,1754283045528,-151.0,0.0004759,14]
[377194736,1754283045538,-151.0,0.0004759,14]
[377194738,1754283045548,-759.368077,0.0004759,14]
[377194739,1754283045557,-759.368077,0.0004759,14]
[377194740,1754283045567,-151.0,0.0004759,14]
[377194741,1754283045576,-5000.0,0.000476,120]
[377194743,1754283045586,-500.0,0.000476,17]
[377194744,1754283045595,-300.970445,0.000476,14]
[377194745,1754283045605,-300.970445,0.000476,14]
[377194746,1754283045614,-1000.0,0.00047609,14]
[377194747,1754283045626,-150.0,0.00047616,14]
[377194748,1754283045635,-1000.0,0.0004762,14]
[377194749,1754283045645,-500.0,0.0004762,120]
[377194750,1754283045654,-1000.0,0.00047621,10]
[377194751,1754283045663,-151.0,0.00047621,14]
[377194752,1754283045673,-151.0,0.00047621,14]
[377194753,1754283045682,-171.384427,0.00047621,14]
[377194754,1754283045691,-88888.0,0.00047665,120]
[377194755,1754283045700,-271.980692,0.00047665,14]
[377194756,1754283045710,-271.980692,0.00047665,14]
[377194757,1754283045719,-151.0,0.00047665,14]
[377194758,1754283045729,-186.808649,0.00047665,14]
[377194759,1754283045739,-276.841395,0.00047665,14]
[377194760,1754283045748,-167.47154797,0.00047667,15]
[377194761,1754283045757,-1151.90158851,0.00047673,30]
[377194762,1754283045767,-295.672472,0.00047673,14]